[Event "35th European Club Cup 2019"]
[Site "Ulcinj"]
[Date "2019.11.10"]
[Round "1.18"]
[White "Greenfeld, Alon"]
[Black "Krstonijevic, Stjepan"]
[Result "1-0"]
[ECO "D49"]
[WhiteElo "2513"]
[BlackElo "2106"]
[Annotator "ChessBase"]
[PlyCount "79"]
[EventDate "2019.11.10"]
[EventType "team-tourn"]
[EventCountry "MNE"]
[SourceTitle "playchess.com"]
[Source "ChessBase"]
[SourceQuality "1"]
[WhiteTeam "Beer Sheva"]
[BlackTeam "Rudar"]
[TimeControl "40/5400+30:1800+30"]

1. d4 {[%emt 0:00:27]} Nf6 {[%emt 0:00:01]} 2. Nf3 {[%emt 0:01:14]} e6 {[%emt 0:00:36]} 3. c4 d5 {[%emt 0:01:30]} 4. Nc3 {[%emt 0:02:51]} c6 {[%emt 0:03:35]} 5. e3 {[%emt 0:03:48]} Nbd7 {[%emt 0:00:20]} 6. Bd3 {[%emt 0:00:32]} dxc4 {[%emt 0:00:10]} 7. Bxc4 {[%emt 0:00:07]} b5 {[%emt 0:00:02]} 8. Bd3 {[%emt 0:02:08]} a6 {[%emt 0:00:09]} 9. e4 {[%emt 0:04:43]} c5 {[%emt 0:01:14]} 10. e5 {[%emt 0:04:17]} cxd4 {[%emt 0:02:46]} 11. Nxb5 {[%emt 0:00:24]} Nxe5 {[%emt 0:06:25]} 12. Nxe5 {[%emt 0:00:54]} axb5 {[%emt 0:00:10]} 13. Bxb5+ {[%emt 0:03:20]} Bd7 {[%emt 0:02:50]} 14. Nxd7 {[%emt 0:03:30]} Qa5+ {[%emt 0:02:18]} 15. Bd2 {[%emt 0:00:06]} Qxb5 {[%emt 0:00:52]} 16. Nxf6+ {[%emt 0:10:37]} gxf6 {[%emt 0:00:56]} 17. a4 {[%emt 0:00:12]} Qd3 {[%emt 0:51:06]} 18. Qe2 {[%emt 0:10:20]} Qxe2+ {[%emt 0:00:33]} 19. Kxe2 {[%emt 0:00:06]} Kd7 {[%emt 0:04:21]} 20. b4 {[%emt 0:04:25]} Bd6 {[%emt 0:00:24]} 21. Rhb1 {[%emt 0:07:22]} e5 {[%emt 0:01:57]} 22. b5 {[%emt 0:04:28]} e4 {[%emt 0:00:34]} 23. a5 {[%emt 0:00:29]} Rhb8 {[%emt 0:04:16]} 24. Ra4 {[%emt 0:05:40]} Be5 {[%emt 0:06:28]} 25. f4 {[%emt 0:01:25]} exf3+ {[%emt 0:00:23]} 26. gxf3 {[%emt 0:03:58]} f5 {[%emt 0:00:53]} 27. Kd3 {[%emt 0:02:11]} Ke6 {[%emt 0:03:38]} 28. b6 {[%emt 0:03:15]} Kd5 {[%emt 0:00:55]} 29. Rb5+ {[%emt 0:01:42]} Ke6 {[%emt 0:00:01]} 30. a6 {[%emt 0:00:59]} Bxh2 {[%emt 0:01:51]} 31. b7 {[%emt 0:03:20]} Ra7 {[%emt 0:00:14]} 32. Bb4 {[%emt 0:00:15]} Rd8 {[%emt 0:00:56]} 33. Bc5 {[%emt 0:01:18]} Bb8 {[%emt 0:01:50]} 34. Bxa7 {[%emt 0:00:40]} Bxa7 {[%emt 0:00:02]} 35. Rc4 {[%emt 0:00:42]} Rd6 {[%emt 0:01:10]} 36. Rc8 {[%emt 0:03:27]} Rxa6 {[%emt 0:00:22]} 37. Ra8 {[%emt 0:00:13]} Ra3+ {[%emt 0:00:07]} 38. Kc4 {[%emt 0:01:04]} d3 {[%emt 0:00:36]} 39. Rxa7 {[%emt 0:00:34]} d2 {[%emt 0:00:02]} 40. Rb6+ {[%emt 0:00:00] Kd5+} 1-0

[Event "35th European Club Cup 2019"]
[Site "Ulcinj"]
[Date "2019.11.10"]
[Round "1.24"]
[White "Rendboe, John Filip"]
[Black "Brunello, Sabino"]
[Result "1/2-1/2"]
[ECO "E55"]
[WhiteElo "2119"]
[BlackElo "2549"]
[Annotator "ChessBase"]
[PlyCount "78"]
[EventDate "2019.11.10"]
[EventType "team-tourn"]
[EventCountry "MNE"]
[SourceTitle "playchess.com"]
[Source "ChessBase"]
[SourceQuality "1"]
[WhiteTeam "Aarhus Skolerne"]
[BlackTeam "Padova"]
[TimeControl "40/5400+30:1800+30"]

1. d4 {[%emt 0:00:00]} Nf6 {[%emt 0:00:00]} 2. c4 {[%emt 0:00:00]} e6 {[%emt 0:00:00]} 3. Nc3 {[%emt 0:00:44]} Bb4 {[%emt 0:00:19]} 4. e3 {[%emt 0:00:42]} O-O {[%emt 0:00:15]} 5. Bd3 {[%emt 0:00:16]} d5 {[%emt 0:06:36]} 6. Nf3 {[%emt 0:01:24]} c5 {[%emt 0:01:22]} 7. O-O {[%emt 0:00:44]} dxc4 {[%emt 0:00:58]} 8. Bxc4 {[%emt 0:00:14]} Nbd7 {[%emt 0:00:42]} 9. a3 {[%emt 0:05:52]} Ba5 {[%emt 0:01:49]} 10. Qd3 {[%emt 0:14:31]} cxd4 {[%emt 0:22:51]} 11. exd4 {[%emt 0:00:44]} a6 {[%emt 0:00:34]} 12. b4 {[%emt 0:08:24]} Bc7 {[%emt 0:02:21]} 13. Bg5 {[%emt 0:04:21]} b5 {[%emt 0:07:31]} 14. Bb3 {[%emt 0:05:39]} Bb7 {[%emt 0:00:58]} 15. Rad1 {[%emt 0:03:33]} Qb8 {[%emt 0:10:42]} 16. d5 {[%emt 0:03:13]} Nxd5 {[%emt 0:03:37]} 17. Nxd5 {[%emt 0:02:03]} Bxd5 {[%emt 0:01:15]} 18. Bxd5 {[%emt 0:00:43]} exd5 {[%emt 0:00:39]} 19. Qxd5 {[%emt 0:00:15]} Nb6 {[%emt 0:01:39]} 20. Qd4 {[%emt 0:02:17]} f6 {[%emt 0:05:20]} 21. Bh4 {[%emt 0:02:54]} Qb7 {[%emt 0:09:13]} 22. Qg4 {[%emt 0:01:52]} Qc8 {[%emt 0:01:05]} 23. Qh5 {[%emt 0:07:46]} Qe8 {[%emt 0:01:51]} 24. Qc5 {[%emt 0:08:09]} Qf7 {[%emt 0:08:53]} 25. Rfe1 {[%emt 0:10:25]} Rfd8 {[%emt 0:02:26]} 26. Bg3 {[%emt 0:02:43]} Rac8 {[%emt 0:02:00]} 27. Bxc7 {[%emt 0:05:42]} Rxd1 {[%emt 0:00:15]} 28. Rxd1 {[%emt 0:00:10]} Qxc7 {[%emt 0:00:07]} 29. Qf5 {[%emt 0:01:46]} Re8 {[%emt 0:02:54]} 30. h4 {[%emt 0:01:22]} Qc6 {[%emt 0:02:31]} 31. h5 {[%emt 0:03:55]} Qe6 {[%emt 0:02:27]} 32. Qc5 {[%emt 0:00:51]} Nc4 {[%emt 0:00:45]} 33. Re1 {[%emt 0:00:36]} Qd7 {[%emt 0:00:37]} 34. Rxe8+ {[%emt 0:00:24]} Qxe8 {[%emt 0:00:01]} 35. a4 {[%emt 0:00:14]} Qd7 {[%emt 0:01:59]} 36. axb5 {[%emt 0:00:45]} axb5 {[%emt 0:00:29]} 37. Nd4 {[%emt 0:01:26]} Ne5 {[%emt 0:00:41]} 38. Qxb5 {[%emt 0:01:04]} Qxb5 {[%emt 0:00:15]} 39. Nxb5 {[%emt 0:00:06]} Nd3 {[%emt 0:00:04]} 1/2-1/2

[Event "35th European Club Cup 2019"]
[Site "Ulcinj"]
[Date "2019.11.10"]
[Round "1.29"]
[White "Boel, Marcel"]
[Black "Rozum, Ivan"]
[Result "1/2-1/2"]
[ECO "B08"]
[WhiteElo "2218"]
[BlackElo "2593"]
[Annotator "ChessBase"]
[PlyCount "79"]
[EventDate "2019.11.10"]
[EventType "team-tourn"]
[EventCountry "MNE"]
[SourceTitle "playchess.com"]
[Source "ChessBase"]
[SourceQuality "1"]
[WhiteTeam "Apeldoorn"]
[BlackTeam "Law & Order"]
[TimeControl "40/5400+30:1800+30"]

1. e4 {[%emt 0:00:00]} d6 {[%emt 0:00:00]} 2. d4 {[%emt 0:00:00]} Nf6 {[%emt 0:00:00]} 3. Nc3 {[%emt 0:00:00]} g6 {[%emt 0:00:00]} 4. Nf3 {[%emt 0:00:12]} Bg7 {[%emt 0:00:00]} 5. Be3 {[%emt 0:00:35]} O-O {[%emt 0:00:14]} 6. h3 {[%emt 0:00:36]} c6 {[%emt 0:00:24]} 7. a4 {[%emt 0:00:40]} Nbd7 {[%emt 0:00:41]} 8. a5 {[%emt 0:01:20]} Qc7 {[%emt 0:01:14]} 9. Be2 {[%emt 0:04:05]} Rb8 {[%emt 0:01:22]} 10. O-O {[%emt 0:00:51]} b5 {[%emt 0:00:24]} 11. axb6 {[%emt 0:02:49]} axb6 {[%emt 0:00:41]} 12. Bd3 {[%emt 0:07:58]} e5 {[%emt 0:04:27]} 13. dxe5 {[%emt 0:02:43]} dxe5 {[%emt 0:00:49]} 14. Qb1 {[%emt 0:08:48]} Rd8 {[%emt 0:05:14]} 15. b4 {[%emt 0:09:18]} Nf8 {[%emt 0:02:18]} 16. Bc4 {[%emt 0:08:33]} Ne6 {[%emt 0:08:10]} 17. Ng5 {[%emt 0:13:17]} Nxg5 {[%emt 0:01:03]} 18. Bxg5 {[%emt 0:00:05]} b5 {[%emt 0:03:51]} 19. Be2 {[%emt 0:03:58]} h6 {[%emt 0:04:36]} 20. Be3 {[%emt 0:00:27]} Nd7 {[%emt 0:00:40]} 21. Rd1 {[%emt 0:01:30]} Nf8 {[%emt 0:07:02]} 22. Ra7 {[%emt 0:03:30]} Bb7 {[%emt 0:02:10]} 23. Qa2 {[%emt 0:03:51]} Ne6 {[%emt 0:02:59]} 24. Rxd8+ {[%emt 0:03:49]} Qxd8 {[%emt 0:04:44]} 25. Nb1 {[%emt 0:02:36]} Bf8 {[%emt 0:07:49]} 26. c3 {[%emt 0:02:01]} Nf4 {[%emt 0:00:56]} 27. Bf3 {[%emt 0:03:11]} Ra8 {[%emt 0:09:38]} 28. Nd2 Rxa7 {[%emt 0:06:39]} 29. Qxa7 {[%emt 0:01:43]} Bc8 {[%emt 0:00:44]} 30. Nb3 {[%emt 0:02:31]} Qd3 {[%emt 0:08:23]} 31. Qb8 {[%emt 0:00:46]} Qxc3 {[%emt 0:02:47]} 32. Qxc8 {[%emt 0:04:18]} Qxb3 {[%emt 0:00:45]} 33. Qxc6 {[%emt 0:04:57]} Qxb4 {[%emt 0:01:08]} 34. Qe8 {[%emt 0:00:12]} Qb2 {[%emt 0:02:52]} 35. Bxf4 {[%emt 0:01:43]} exf4 {[%emt 0:00:04]} 36. e5 Qb3 {[%emt 0:06:27]} 37. Bg4 {[%emt 0:01:06]} Qb4 {[%emt 0:03:27]} 38. e6 {[%emt 0:00:38]} Qe7 {[%emt 0:00:18]} 39. exf7+ {[%emt 0:00:57]} Kg7 {[%emt 0:00:03]} 40. Qxe7 {[%emt 0:00:00]} 1/2-1/2

[Event "35th European Club Cup 2019"]
[Site "Ulcinj"]
[Date "2019.11.10"]
[Round "1.30"]
[White "Sychev, Klementy"]
[Black "Van der Elburg, Freddie"]
[Result "1-0"]
[ECO "A04"]
[WhiteElo "2578"]
[BlackElo "2190"]
[Annotator "ChessBase"]
[PlyCount "49"]
[EventDate "2019.11.10"]
[EventType "team-tourn"]
[EventCountry "MNE"]
[SourceTitle "playchess.com"]
[Source "ChessBase"]
[SourceQuality "1"]
[WhiteTeam "Law & Order"]
[BlackTeam "Apeldoorn"]
[TimeControl "40/5400+30:1800+30"]

1. Nf3 {[%emt 0:00:00]} d6 {[%emt 0:00:00]} 2. d4 {[%emt 0:00:00]} f5 {[%emt 0:00:18]} 3. Nc3 {[%emt 0:00:00]} Nf6 {[%emt 0:00:31]} 4. Bg5 {[%emt 0:00:00]} Nbd7 {[%emt 0:03:24]} 5. Qd3 {[%emt 0:00:25]} g6 {[%emt 0:01:50]} 6. e4 {[%emt 0:00:13]} fxe4 {[%emt 0:00:22]} 7. Nxe4 {[%emt 0:00:06]} Bg7 {[%emt 0:01:09]} 8. O-O-O {[%emt 0:00:39]} O-O {[%emt 0:04:27]} 9. h4 {[%emt 0:03:44]} Nxe4 {[%emt 0:08:46]} 10. Qxe4 {[%emt 0:00:13]} Nf6 {[%emt 0:00:07]} 11. Bc4+ {[%emt 0:19:01]} Kh8 {[%emt 0:04:33]} 12. Bxf6 {[%emt 0:01:15]} exf6 {[%emt 0:05:57]} 13. Rde1 {[%emt 0:09:40]} c6 {[%emt 0:08:06]} 14. Qf4 {[%emt 0:14:27]} d5 {[%emt 0:12:41]} 15. Bd3 {[%emt 0:00:11]} Qd7 {[%emt 0:00:51]} 16. Kb1 {[%emt 0:02:49]} Qg4 {[%emt 0:02:05]} 17. Qc7 {[%emt 0:06:27]} Qd7 {[%emt 0:10:42]} 18. Qxd7 {[%emt 0:06:21]} Bxd7 {[%emt 0:00:05]} 19. h5 {[%emt 0:00:02]} gxh5 {[%emt 0:07:22]} 20. Rxh5 {[%emt 0:00:06]} Bg4 {[%emt 0:03:01]} 21. Rxh7+ {[%emt 0:01:38]} Kg8 {[%emt 0:00:04]} 22. Bg6 {[%emt 0:08:03]} Bxf3 {[%emt 0:06:19]} 23. Re7 {[%emt 0:01:49]} Bh8 {[%emt 0:00:04]} 24. Rh3 {[%emt 0:02:36]} Be4 {[%emt 0:00:34]} 25. Bh7+ {[%emt 0:00:46]} 1-0

[Event "35th European Club Cup 2019"]
[Site "Ulcinj"]
[Date "2019.11.11"]
[Round "2.32"]
[White "Cardon, Helmut"]
[Black "Alekseev, Evgeny"]
[Result "0-1"]
[ECO "D35"]
[WhiteElo "2398"]
[BlackElo "2623"]
[Annotator "RC"]
[PlyCount "88"]
[EventDate "2019.11.10"]
[EventType "team-tourn"]
[EventCountry "MNE"]
[SourceTitle "playchess.com"]
[Source "ChessBase"]
[SourceQuality "1"]
[WhiteTeam "HWP Sas van Gent"]
[BlackTeam "Law & Order"]
[TimeControl "40/5400+30:1800+30"]

1. d4 {[%emt 0:00:00]} Nf6 {[%emt 0:00:00]} 2. c4 {[%emt 0:00:00]} e6 {[%emt 0:00:00]} 3. Nc3 {[%emt 0:00:00]} d5 {[%emt 0:00:26]} 4. cxd5 {[%emt 0:00:18]} exd5 {[%emt 0:00:23]} 5. Bg5 {[%emt 0:00:08]} c6 {[%emt 0:00:34]} 6. e3 {[%emt 0:00:07]} Bd6 {[%emt 0:00:34]} 7. Bd3 {[%emt 0:03:34]} Nbd7 {[%emt 0:03:16]} 8. Nge2 {[%emt 0:02:03]} Nf8 {[%emt 0:17:22]} 9. Bf4 {[%emt 0:04:22]} Ng6 {[%emt 0:03:31]} 10. Bg3 {[%emt 0:05:15]} O-O {[%emt 0:02:30]} 11. Qc2 {[%emt 0:11:47]} Re8 {[%emt 0:04:21]} 12. O-O {[%emt 0:00:19]} Qe7 {[%emt 0:17:57]} 13. Rab1 {[%emt 0:04:09]} Bd7 {[%emt 0:01:19]} 14. Bxd6 {[%emt 0:07:56]} Qxd6 {[%emt 0:00:56]} 15. Ng3 {[%emt 0:00:09]} Ng4 {[%emt 0:07:36]} 16. Bf5 {[%emt 0:01:41]} Rad8 {[%emt 0:01:36]} 17. Nce2 {[%emt 0:09:06]} Bxf5 {[%emt 0:11:29]} 18. Qxf5 {[%emt 0:00:08]} Nf6 {[%emt 0:00:08]} 19. b4 {[%emt 0:03:38]} Ne7 {[%emt 0:00:59]} 20. Qf4 {[%emt 0:05:05]} Qd7 {[%emt 0:01:56]} 21. Nc3 {[%emt 0:02:44]} b5 {[%emt 0:04:28]} 22. a4 {[%emt 0:01:49]} a6 {[%emt 0:00:04]} 23. Rb3 {[%emt 0:07:20]} Ng6 {[%emt 0:10:07]} 24. Qf5 {[%emt 0:01:13]} Qd6 {[%emt 0:01:33]} 25. Ra1 {[%emt 0:01:39]} Ne7 {[%emt 0:00:15]} 26. Qb1 {[%emt 0:01:13]} h5 {[%emt 0:01:23]} 27. axb5 {[%emt 0:03:19]} axb5 {[%emt 0:00:01]} 28. Ra6 {[%emt 0:00:26]} h4 {[%emt 0:00:41]} 29. Nf5 {[%emt 0:04:36]} Nxf5 {[%emt 0:00:04]} 30. Qxf5 {[%emt 0:00:04]} g6 {[%emt 0:01:29]} 31. Qg5 {[%emt 0:09:06]} Ra8 {[%emt 0:00:11]} 32. Rxa8 {[%emt 0:01:25]} Rxa8 {[%emt 0:00:07]} 33. f3 {[%emt 0:00:07]} Ra1+ {[%emt 0:02:22]} 34. Nb1 {[%emt 0:00:27]} h3 {[%emt 0:02:04]} 35. gxh3 {[%emt 0:03:09]} Qe6 {[%emt 0:00:33]} 36. Qg2 {[%emt 0:04:32]} Qf5 {[%emt 0:02:36]} 37. Qb2 {[%emt 0:00:09]} Ra8 {[%emt 0:00:09]} 38. Nd2 {[%emt 0:04:34]} Kg7 {[%emt 0:00:48]} 39. Qb1 {[%emt 0:00:29]} Qxh3 {[%emt 0:01:41]} 40. Qf1 {[%emt 0:00:00]} Qf5 {[%emt 0:00:00]} 41. Rc3 {[%emt 0:05:38]} Ra2 {[%emt 0:03:13]} 42. Qd3 {[%emt 0:11:00]} Qg5+ {[%emt 0:07:09]} 43. Kf2 {[%emt 0:00:09]} Qh4+ {[%emt 0:00:36]} 44. Kg1 {[%emt 0:03:59]} Qe1+ {[%emt 0:00:27]} 0-1

[Event "35th European Club Cup 2019"]
[Site "Ulcinj"]
[Date "2019.11.12"]
[Round "3.2"]
[White "Sorensen, Jan"]
[Black "Fernandez, Daniel Howard"]
[Result "0-1"]
[ECO "B06"]
[WhiteElo "2395"]
[BlackElo "2444"]
[Annotator "NA"]
[PlyCount "110"]
[EventDate "2019.11.10"]
[EventType "team-tourn"]
[EventCountry "MNE"]
[SourceTitle "playchess.com"]
[Source "ChessBase"]
[SourceQuality "1"]
[WhiteTeam "Aarhus Skolerne"]
[BlackTeam "KGSRL Gent"]
[TimeControl "40/5400+30:1800+30"]

1. e4 g6 2. d4 Bg7 3. Nf3 d6 4. Bc4 Nf6 5. Qe2 O-O 6. e5 Ne8 {B06: Modern Defence} 7. Nbd2 (7. h3 c5 8. dxc5 dxe5 9. Nxe5 Qd4 10. Ng4 Bxg4 11. hxg4 Qxc5 12. Be3 Qc6 13. c3 Nd6 14. Nd2 {0-1 (62) Zubov,A (2597)-Andreikin,D (2719) St Petersburg 2018}) 7... c5 8. dxc5 d5 9. Bd3 Nc7 $146 ({Predecessor:} 9... Nd7 10. O-O Nxc5 11. h3 Nxd3 12. cxd3 d4 13. Nb3 Nc7 14. Nbxd4 {½-½ (49) Arizmendi Martinez,J (2501)-Gual Pascual,A (2416) Barbera del Valles 2016}) 10. O-O Nca6 11. c3 Nxc5 12. Bc2 Bg4 13. h3 Bxf3 14. Nxf3 Qc7 15. Bf4 Ncd7 16. Bb3 e6 17. c4 dxc4 18. Bxc4 Nc6 19. Rfe1 Rfd8 20. Rac1 a6 21. b4 Nb6 22. Bb3 $11 Nd5 23. Bd2 Qb6 24. a3 Rac8 25. Qe4 Nce7 26. h4 h6 27. h5 gxh5 28. Qh4 Rxc1 29. Bxc1 Ng6 30. Qxh5 Ndf4 31. Qg4 Rd3 32. Bc2 h5 33. Qg3 Qc7 34. Bxf4 Qxc2 35. Kh2 h4 36. Qg4 Qxf2 37. Rc1 Rxf3 38. Rc8+ Bf8 39. Qxf3 Qxf3 40. gxf3 Nxf4 41. Rb8 b5 42. Ra8 Nd3 43. Rxa6 Nxe5 44. Rb6 Nxf3+ 45. Kh3 Nd4 46. Kxh4 Bh6 47. Kh5 Kg7 48. Rd6 Be3 49. Rd7 e5 50. Rc7 Kf6 51. Rc3 Bd2 52. Rd3 Bf4 53. a4 bxa4 54. Ra3 e4 55. Rxa4 e3 0-1

[Event "35th European Club Cup 2019"]
[Site "Ulcinj"]
[Date "2019.11.12"]
[Round "3.3"]
[White "Stojanovic, Mihajlo"]
[Black "Grachev, Boris"]
[Result "0-1"]
[ECO "D31"]
[WhiteElo "2496"]
[BlackElo "2608"]
[Annotator "ChessBase"]
[PlyCount "64"]
[EventDate "2019.11.10"]
[EventType "team-tourn"]
[EventCountry "MNE"]
[SourceTitle "playchess.com"]
[Source "ChessBase"]
[SourceQuality "1"]
[WhiteTeam "Itaka"]
[BlackTeam "Moscow Chess Team"]
[TimeControl "40/5400+30:1800+30"]

1. d4 {[%emt 0:00:00]} d5 {[%emt 0:00:00]} 2. c4 {[%emt 0:00:00]} e6 {[%emt 0:00:00]} 3. Nc3 {[%emt 0:00:00]} a6 {[%emt 0:00:00]} 4. cxd5 {[%emt 0:00:00]} exd5 {[%emt 0:00:00]} 5. Nf3 {[%emt 0:00:00]} Nf6 {[%emt 0:00:15]} 6. Bg5 {[%emt 0:00:40]} Be6 {[%emt 0:00:43]} 7. e3 {[%emt 0:00:08]} Nbd7 {[%emt 0:00:10]} 8. h3 {[%emt 0:01:16]} h6 {[%emt 0:00:12]} 9. Bf4 {[%emt 0:01:21]} Bf5 {[%emt 0:00:04]} 10. g4 {[%emt 0:10:00]} Bh7 {[%emt 0:01:53]} 11. Bg2 {[%emt 0:03:27]} c6 {[%emt 0:02:58]} 12. O-O {[%emt 0:10:48]} Be7 {[%emt 0:01:31]} 13. Ne5 {[%emt 0:06:42]} O-O {[%emt 0:01:39]} 14. Rc1 {[%emt 0:05:46]} Nb6 {[%emt 0:27:41]} 15. Bg3 {[%emt 0:09:37]} a5 {[%emt 0:09:53]} 16. f4 {[%emt 0:18:30]} Ne4 {[%emt 0:01:36]} 17. Bxe4 {[%emt 0:09:18]} Bxe4 {[%emt 0:17:36]} 18. f5 {[%emt 0:00:04]} Bd6 {[%emt 0:02:52]} 19. Bf4 {[%emt 0:06:16]} Re8 {[%emt 0:05:51]} 20. f6 {[%emt 0:14:01]} gxf6 {[%emt 0:01:47]} 21. Nxe4 {[%emt 0:01:29]} dxe4 {[%emt 0:00:28]} 22. Nc4 {[%emt 0:00:31]} Bxf4 {[%emt 0:01:30]} 23. Rxf4 {[%emt 0:00:10]} Nd5 {[%emt 0:00:11]} 24. Rf2 {[%emt 0:00:14]} b5 {[%emt 0:05:38]} 25. Nd2 {[%emt 0:00:04]} Nxe3 {[%emt 0:00:33]} 26. Qe2 {[%emt 0:00:05]} Qxd4 {[%emt 0:01:48]} 27. Nb3 {[%emt 0:00:05]} Qd3 {[%emt 0:03:04]} 28. Rxc6 {[%emt 0:00:08]} Nd1 {[%emt 0:02:25]} 29. Qxd3 {[%emt 0:02:39]} exd3 {[%emt 0:00:08]} 30. Rfxf6 {[%emt 0:00:56]} Nxb2 {[%emt 0:03:11]} 31. Rxh6 {[%emt 0:00:43]} a4 {[%emt 0:01:09]} 32. Nd2 {[%emt 0:00:15]} Nc4 {[%emt 0:00:15]} 0-1

[Event "35th European Club Cup 2019"]
[Site "Ulcinj"]
[Date "2019.11.12"]
[Round "3.3"]
[White "Ris, Robert"]
[Black "Vinter-Schou, Uffe"]
[Result "1/2-1/2"]
[ECO "B48"]
[WhiteElo "2454"]
[BlackElo "2361"]
[Annotator "ChessBase"]
[PlyCount "86"]
[EventDate "2019.11.10"]
[EventType "team-tourn"]
[EventCountry "MNE"]
[SourceTitle "playchess.com"]
[Source "ChessBase"]
[SourceQuality "1"]
[WhiteTeam "KGSRL Gent"]
[BlackTeam "Aarhus Skolerne"]
[TimeControl "40/5400+30:1800+30"]

1. e4 c5 2. Nf3 e6 {[%emt 0:00:00]} 3. d4 cxd4 {[%emt 0:00:01]} 4. Nxd4 {[%emt 0:00:28]} Nc6 {[%emt 0:00:13]} 5. Nc3 {[%emt 0:00:21]} Qc7 {[%emt 0:00:10]} 6. Be3 Nf6 {[%emt 0:00:30]} 7. f4 Bb4 {[%emt 0:00:30]} 8. Ndb5 Qa5 {[%emt 0:00:30]} 9. e5 Ne4 {[%emt 0:00:30]} 10. Qd3 Nxc3 {[%emt 0:00:30]} 11. bxc3 Be7 {[%emt 0:00:30]} 12. Bd2 O-O {[%emt 0:00:30]} 13. Qe3 f6 {[%emt 0:00:30]} 14. exf6 Bxf6 {[%emt 0:00:30]} 15. Bd3 d5 {[%emt 0:00:30]} 16. O-O Bd7 {[%emt 0:00:30]} 17. Rae1 a6 {[%emt 0:00:30]} 18. c4 Qd8 {[%emt 0:00:30]} 19. Qh3 g6 {[%emt 0:00:30]} 20. Nc3 e5 {[%emt 0:00:30]} 21. f5 e4 {[%emt 0:00:30]} 22. cxd5 exd3 {[%emt 0:00:30]} 23. dxc6 Bxf5 {[%emt 0:00:30]} 24. g4 Qd4+ {[%emt 0:00:30]} 25. Be3 Qxg4+ {[%emt 0:00:30]} 26. Qxg4 Bxg4 {[%emt 0:00:30]} 27. Nd5 Bh4 {[%emt 0:00:30]} 28. cxb7 Rab8 {[%emt 0:00:30]} 29. Bh6 Rxf1+ {[%emt 0:00:30]} 30. Rxf1 Bf5 {[%emt 0:00:30]} 31. cxd3 Rxb7 {[%emt 0:00:30]} 32. Ne3 Rb5 {[%emt 0:00:30]} 33. Nxf5 gxf5 {[%emt 0:00:30]} 34. Rf4 Bd8 {[%emt 0:00:30]} 35. Ra4 a5 {[%emt 0:00:30]} 36. Be3 Rb2 {[%emt 0:00:30]} 37. Rc4 Kf7 {[%emt 0:00:30]} 38. a4 Ke6 {[%emt 0:00:30]} 39. Rc6+ Kd5 {[%emt 0:00:30]} 40. Rc5+ Ke6 {[%emt 0:00:30]} 41. Rc6+ Kd5 {[%emt 0:30:30]} 42. Rc5+ Ke6 {[%emt 0:00:30]} 43. Rc6+ Kd5 {[%emt 0:00:30]} 1/2-1/2

[Event "35th European Club Cup 2019"]
[Site "Ulcinj"]
[Date "2019.11.12"]
[Round "3.4"]
[White "Sobjerg, Erik"]
[Black "Lemmers, Oscar"]
[Result "1-0"]
[ECO "B43"]
[WhiteElo "2289"]
[BlackElo "2346"]
[Annotator "NA"]
[PlyCount "73"]
[EventDate "2019.11.10"]
[EventType "team-tourn"]
[EventCountry "MNE"]
[SourceTitle "playchess.com"]
[Source "ChessBase"]
[SourceQuality "1"]
[WhiteTeam "Aarhus Skolerne"]
[BlackTeam "KGSRL Gent"]
[TimeControl "40/5400+30:1800+30"]

1. e4 c5 {[%emt 0:00:00]} 2. Nf3 {[%emt 0:00:00]} e6 {[%emt 0:00:00]} 3. Nc3 {[%emt 0:00:00]} a6 {[%emt 0:00:22]} 4. d4 {[%emt 0:00:00]} cxd4 {[%emt 0:00:13]} 5. Nxd4 {[%emt 0:00:00]} Qc7 {[%emt 0:00:37]} 6. Bd3 {[%emt 0:00:00]} Nf6 {[%emt 0:00:38]} 7. Qe2 {[%emt 0:00:01]} d6 {[%emt 0:03:00]} 8. f4 {[%emt 0:00:25]} g6 {[%emt 0:01:58]} 9. f5 {[%emt 0:01:00]} e5 {[%emt 0:03:39]} 10. Bg5 {[%emt 0:11:17]} Nbd7 {[%emt 0:02:57]} 11. Ne6 {[%emt 0:09:54]} fxe6 {[%emt 0:01:52]} 12. fxe6 {[%emt 0:00:09]} Bg7 {[%emt 0:19:11]} 13. exd7+ {[%emt 0:16:24]} Bxd7 {[%emt 0:00:17]} 14. Bc4 {[%emt 0:02:41]} Rf8 {[%emt 0:16:08]} 15. Nd5 {[%emt 0:16:06]} Nxd5 {[%emt 0:02:31]} 16. Bxd5 {[%emt 0:00:08]} h6 {[%emt 0:03:49]} 17. Be3 {[%emt 0:04:47]} h5 {[%emt 0:10:04]} 18. h3 {[%emt 0:02:15]} Bb5 {[%emt 0:08:10]} 19. Qd2 {[%emt 0:04:28]} Ba4 {[%emt 0:04:58]} 20. O-O-O {[%emt 0:05:36]} Rc8 {[%emt 0:00:21]} 21. b3 {[%emt 0:00:48]} Bc6 {[%emt 0:00:26]} 22. c4 {[%emt 0:07:20]} b5 {[%emt 0:02:09]} 23. Bxc6+ {[%emt 0:04:27]} Qxc6 {[%emt 0:00:02]} 24. Qxd6 {[%emt 0:00:15]} bxc4 {[%emt 0:00:29]} 25. b4 {[%emt 0:01:20]} Rf7 {[%emt 0:05:02]} 26. Rd5 {[%emt 0:01:32]} Rd7 {[%emt 0:01:54]} 27. Qxc6 {[%emt 0:02:10]} Rxc6 {[%emt 0:00:02]} 28. Rhd1 {[%emt 0:00:36]} Rxd5 {[%emt 0:02:22]} 29. Rxd5 {[%emt 0:00:13]} Rf6 {[%emt 0:04:20]} 30. Rxe5+ {[%emt 0:04:49]} Kf7 {[%emt 0:00:01]} 31. Rc5 {[%emt 0:00:59]} Rf1+ {[%emt 0:00:30]} 32. Kc2 {[%emt 0:00:04]} Re1 {[%emt 0:02:50]} 33. Kd2 {[%emt 0:00:28]} Ra1 {[%emt 0:02:15]} 34. Rc7+ {[%emt 0:00:05]} Kf8 {[%emt 0:00:21]} 35. Bc5+ {[%emt 0:00:07]} Kg8 {[%emt 0:00:10]} 36. Rxg7+ {[%emt 0:00:06]} Kxg7 {[%emt 0:00:04]} 37. Bd4+ {[%emt 0:00:08]} 1-0